bitfinex/quotes_SOLUSD_20240808
["timestamp","ask_amount","ask_price","bid_price","bid_amount"]
[1723145242587,65.0,156.49,156.47,15.977]
[1723145242890,45.0,156.49,156.45,6.3917]
[1723145243290,45.0,156.49,156.46,6.3913]
[1723145243489,6.3894,156.51,156.46,6.3913]
[1723145243490,45.0,156.5,156.46,6.3913]
[1723145243696,20.0,156.49,156.45,6.3917]
[1723145243906,45.0,156.48,156.45,6.3917]
[1723145245210,45.0,156.48,156.46,6.3913]
[1723145246123,45.0,156.48,156.47,6.391]
[1723145246530,45.0,156.48,156.4,31.9688]
[1723145246708,20.0,156.47,156.34,6.1476]
[1723145247020,67.0038,156.46,156.4,22.3775]
[1723145247189,6.3923,156.44,156.37,15.9874]
[1723145247396,45.0,156.43,156.4,6.3937]
[1723145248019,45.0,156.44,156.4,6.3937]
[1723145248326,45.0,156.44,156.35,31.9782]
[1723145248327,45.0,156.44,156.36,15.9881]
[1723145248551,6.3935,156.41,156.36,22.3832]
[1723145248815,45.0,156.4,156.36,22.3832]
[1723145249305,45.0,156.4,156.37,6.395]
[1723145249500,45.0,156.41,156.37,6.395]
[1723145250322,45.0,156.41,156.38,6.3945]
[1723145250996,45.0,156.41,156.37,6.3949]
[1723145251193,51.3937,156.41,156.36,15.9881]
[1723145251398,45.0,156.41,156.36,22.3835]
[1723145252335,45.0,156.41,156.37,6.395]
[1723145253311,6.3951,156.37,156.33,15.9911]
[1723145253517,6.3959,156.35,156.27,31.9942]
[1723145253719,6.3959,156.35,156.3,22.3919]
[1723145253934,45.0,156.34,156.3,22.3919]
[1723145254440,51.3963,156.34,156.29,6.3983]
[1723145254616,26.3968,156.33,156.28,6.3986]
[1723145254938,45.0,156.32,156.27,15.9973]
[1723145255116,45.0,156.32,156.31,6.3975]
[1723145255912,45.0,156.32,156.3,6.3978]
[1723145257145,45.0,156.32,156.26,15.9984]
[1723145257354,20.0,156.31,156.27,6.399]
[1723145257646,45.0,156.3,156.27,6.399]
[1723145259036,45.0,156.3,156.26,15.9984]
[1723145259252,51.3979,156.3,156.26,15.9984]
[1723145259541,45.0,156.3,156.27,6.3991]
[1723145260259,45.0,156.3,156.26,22.3979]
[1723145261057,45.0,156.3,156.27,6.3991]
[1723145261254,20.0,156.31,156.28,6.3984]
[1723145261458,20.0,156.32,156.28,6.3984]
[1723145262249,26.3972,156.32,156.27,6.399]
[1723145262454,26.3972,156.32,156.26,15.9984]
[1723145262773,45.0,156.31,156.26,15.9984]
[1723145262942,45.0,156.31,156.28,6.3987]
[1723145263587,45.0,156.31,156.27,6.399]
[1723145264566,45.0,156.31,156.28,6.3987]
[1723145264767,45.0,156.31,156.29,6.3983]
[1723145264945,64.6557,156.38,156.31,6.3973]
[1723145265151,6.3957,156.36,156.31,6.3973]
[1723145265671,21.1184,156.38,156.34,6.3962]
[1723145265869,21.1184,156.38,156.32,15.992]
[1723145266049,21.1184,156.38,156.34,6.396]
[1723145266942,15.0494,156.38,156.35,6.3958]
[1723145267144,6.3937,156.41,156.36,6.3954]
[1723145268073,28.2233,156.42,156.37,6.3948]
[1723145268768,6.3935,156.41,156.37,6.3948]
[1723145269369,28.2234,156.42,156.37,6.3948]
[1723145269781,20.0,156.41,156.37,6.3948]
[1723145270361,45.0,156.4,156.37,6.3948]
[1723145271870,45.0,156.4,156.38,6.3946]
[1723145272077,45.0,156.4,156.37,6.3949]
[1723145273073,45.0,156.4,156.36,22.3835]
[1723145273864,51.3941,156.4,156.36,15.9882]
[1723145274055,51.3941,156.4,156.36,22.3836]
[1723145274256,45.0,156.4,156.36,22.3836]
[1723145276891,45.0,156.4,156.33,15.9911]
[1723145277069,51.3939,156.4,156.35,6.3956]
[1723145277264,51.3939,156.4,156.36,6.3954]
[1723145277465,51.3939,156.4,156.35,6.3958]
[1723145277665,6.3943,156.39,156.34,6.3961]
[1723145277984,45.0,156.38,156.33,15.9911]
[1723145278294,20.0,156.41,156.24,30.41313487]
[1723145278295,20.0,156.41,156.37,6.395]
[1723145278464,45.0,156.4,156.37,6.395]
[1723145278654,45.0,156.4,156.38,6.3946]
[1723145279281,45.0,156.4,156.39,6.3942]
[1723145279462,45.0,156.4,156.38,6.3945]
[1723145279660,20.0,156.41,156.38,6.3945]
[1723145280256,9.77975179,156.44,156.38,27.55]
[1723145280460,6.3917,156.46,156.41,22.3766]
[1723145280661,6.3918,156.45,156.41,22.3766]
[1723145280963,6.3931,156.42,156.37,15.987]
[1723145281174,6.3931,156.42,156.37,22.3819]
[1723145281365,15.9798,156.45,156.37,15.987]
[1723145281582,6.3935,156.41,156.37,15.987]
[1723145281771,45.0,156.4,156.37,22.382]
[1723145281979,45.0,156.4,156.37,15.987]
[1723145282374,45.0,156.4,156.37,22.382]
[1723145282692,45.0,156.41,156.34,15.99]
[1723145282990,20.0,156.4,156.37,6.3949]
[1723145283170,45.0,156.39,156.36,22.3838]
[1723145283370,45.0,156.39,156.37,6.3948]
[1723145284096,6.6606,156.43,156.4,6.3937]
[1723145284267,22.4315,156.47,156.41,15.9833]
[1723145284592,6.3914,156.46,156.41,22.3766]
[1723145284791,22.4315,156.47,156.34,31.9795]
[1723145285088,27.55,156.46,156.32,43.0485]
[1723145285296,6.3927,156.43,156.38,6.3944]
[1723145285593,27.55,156.46,156.37,15.9874]
[1723145285791,6.3935,156.41,156.37,15.9874]
[1723145286169,6.3931,156.42,156.37,15.9874]
[1723145286376,6.3938,156.4,156.35,6.3957]
[1723145286571,45.0,156.39,156.36,6.3953]
[1723145286779,20.0,156.45,156.35,31.9782]
[1723145286977,45.0,156.44,156.35,31.9782]
[1723145287177,20.0,156.43,156.4,6.3935]
[1723145287378,20.0,156.43,156.41,6.3934]
[1723145287573,33.75726937,156.5,156.43,6.3923]
[1723145287779,15.7689,156.47,156.45,6.3916]
[1723145287981,15.7689,156.47,156.44,15.9801]
[1723145288293,2.92744662,156.49,156.45,6.3917]
[1723145288483,6.3899,156.5,156.45,6.3917]
[1723145289171,6.3898,156.5,156.45,6.3917]
[1723145289567,26.3902,156.49,156.45,6.3917]
[1723145289772,20.0,156.49,156.46,6.3913]
[1723145289991,20.0,156.5,156.46,6.3913]
[1723145290421,6.3908,156.48,156.44,15.9801]
[1723145290919,6.3911,156.47,156.42,6.3929]
[1723145291084,6.3911,156.47,156.41,15.9832]
[1723145291285,6.3906,156.48,156.43,6.3925]
[1723145291517,6.3914,156.46,156.41,15.9832]
[1723145291689,51.3918,156.45,156.41,15.9832]
[1723145291889,51.3918,156.45,156.41,22.3766]
[1723145292311,45.0,156.45,156.41,22.3766]
[1723145292502,51.3918,156.45,156.41,22.3766]
[1723145292706,45.0,156.45,156.41,22.3766]
[1723145292898,45.0,156.45,156.36,44.2023]
[1723145292899,15.9839,156.41,156.36,1.27865616]
[1723145293099,21.1901,156.44,156.21,6.1439]
[1723145293100,27.55,156.37,156.25,6.65437047]
[1723145293298,6.3971,156.32,156.25,6.65437047]
[1723145293499,20.0,156.31,156.21,33.6939]
[1723145293821,26.3978,156.31,156.21,33.6939]
[1723145294014,6.3979,156.3,156.25,22.3985]
[1723145294211,27.55,156.28,156.21,16.0031]
[1723145294515,65.0,156.29,156.23,6.4007]
[1723145295221,65.0,156.29,156.24,6.4003]
[1723145296096,65.0,156.29,156.25,6.3999]
[1723145296421,65.0,156.29,156.24,22.4012]
[1723145296603,71.3983,156.29,156.24,16.0009]
[1723145297014,6.3988,156.28,156.23,6.4007]
[1723145297210,45.0,156.27,156.22,6.4011]
[1723145297718,45.0,156.27,156.23,6.4008]
[1723145297922,45.0,156.27,156.21,16.0039]
[1723145298221,51.3987,156.28,156.23,6.4007]
[1723145298517,45.0,156.28,156.24,6.4002]
[1723145298697,45.0,156.28,156.23,6.4007]
[1723145300019,45.0,156.28,156.25,6.3999]
[1723145301138,45.0,156.28,156.24,6.4003]
[1723145301902,45.0,156.28,156.25,6.3998]
[1723145302125,15.1148,156.32,156.27,6.3991]
[1723145302326,21.5119,156.32,156.27,6.3991]
[1723145302619,6.3975,156.31,156.26,6.3995]
[1723145302998,15.1148,156.32,156.25,15.9994]
[1723145303394,45.0,156.31,156.25,15.9994]
[1723145304221,45.0,156.31,156.27,6.3988]
[1723145304595,45.0,156.31,156.28,6.3987]
[1723145304812,45.0,156.31,156.2,32.0094]
[1723145304813,45.0,156.31,156.29,6.3982]
[1723145305208,45.0,156.31,156.28,6.3986]
[1723145306220,15.2031,156.36,156.24,32.0017]
[1723145306221,45.0,156.32,156.3,6.3978]
[1723145306396,51.396,156.35,156.3,6.3978]
[1723145306592,20.0,156.34,156.31,15.9935]
[1723145306828,15.2031,156.36,156.31,15.9935]
[1723145307000,6.3949,156.38,156.31,15.9935]
[1723145307323,6.3949,156.38,156.33,6.3966]
[1723145307532,15.2031,156.41,156.33,15.9914]
[1723145307697,6.3949,156.38,156.33,22.3878]
[1723145308327,20.0,156.37,156.33,22.3878]
[1723145308512,20.0,156.37,156.34,6.3962]
[1723145308906,20.0,156.38,156.34,6.3962]
[1723145309521,20.0,156.38,156.33,15.9914]
[1723145309732,21.5966,156.41,156.36,6.3954]
[1723145310212,6.3938,156.4,156.36,6.3954]
[1723145311626,45.0,156.39,156.36,6.3954]
[1723145312008,6.393,156.42,156.37,6.395]
[1723145312331,6.3927,156.43,156.38,6.3946]
[1723145313504,6.3927,156.43,156.39,6.3942]
[1723145314104,45.0,156.42,156.39,6.3942]
[1723145314300,21.7355,156.45,156.4,6.3937]
[1723145314515,21.7355,156.45,156.41,6.3934]
[1723145314715,15.3437,156.45,156.41,6.3934]
[1723145315115,21.7356,156.45,156.4,6.3938]
[1723145315311,6.3915,156.46,156.41,6.3934]
[1723145315512,33.39784146,156.53,156.48,6.3902]
[1723145315830,6.389,156.52,156.47,22.3677]
[1723145317021,35.43,156.53,156.42,6.1433]
[1723145317220,6.3926,156.43,156.38,22.3802]
[1723145317435,6.3927,156.43,156.38,22.3806]
[1723145317618,15.9791,156.46,156.35,15.9892]
[1723145318135,6.3929,156.43,156.38,6.3946]
[1723145318314,65.0,156.42,156.35,15.9892]
[1723145318643,45.0,156.42,156.35,15.9892]
[1723145318838,20.0,156.41,156.36,6.3951]
[1723145319045,45.0,156.4,156.36,6.3951]
[1723145319611,45.0,156.4,156.32,15.9926]
[1723145319931,6.3949,156.38,156.32,15.9926]
[1723145320242,65.0,156.37,156.32,15.9926]
[1723145320735,65.0,156.37,156.33,6.3966]
[1723145321533,65.0,156.37,156.32,15.9926]
[1723145321726,65.0,156.37,156.21,35.43]
[1723145321727,65.0,156.37,156.28,15.996]
[1723145321913,6.3959,156.35,156.3,6.3978]
[1723145322113,45.0,156.34,156.31,6.3975]
[1723145322735,45.0,156.35,156.31,6.3975]
[1723145324429,45.0,156.35,156.34,6.3963]
[1723145325039,45.0,156.35,156.33,6.3966]
[1723145325242,45.0,156.36,156.33,6.3966]
[1723145325535,45.0,156.36,156.32,15.9921]
[1723145325536,45.0,156.36,156.32,22.3891]
[1723145327035,51.3956,156.36,156.32,15.9921]
[1723145327336,45.0,156.36,156.29,15.9954]
[1723145327543,6.3963,156.34,156.29,22.3934]
[1723145327736,45.0,156.33,156.29,22.3934]
[1723145328313,45.0,156.33,156.3,6.3978]
[1723145328525,45.0,156.34,156.3,6.3978]
[1723145328720,20.0,156.37,156.31,15.9933]
[1723145328921,20.0,156.41,156.31,15.9933]
[1723145329223,6.3953,156.37,156.32,6.397]
[1723145329538,6.3959,156.35,156.31,22.3907]
[1723145329935,45.0,156.34,156.31,15.9933]
[1723145330140,45.0,156.34,156.31,22.3907]
[1723145330322,45.0,156.35,156.31,22.3907]
[1723145330838,51.3959,156.35,156.31,22.3907]
[1723145331540,45.0,156.35,156.31,22.3907]
[1723145331746,45.0,156.35,156.34,6.3963]
[1723145331924,20.0,156.35,156.33,6.3965]
[1723145332119,6.3943,156.39,156.33,15.9913]
[1723145332323,27.8657372,156.42,156.31,31.987]
[1723145332521,27.8657372,156.42,156.38,6.3946]
[1723145332729,16.233,156.42,156.38,6.3946]
[1723145333234,22.6261,156.42,156.37,22.3822]
[1723145333545,22.6261,156.42,156.38,6.3946]
[1723145333742,20.0,156.41,156.38,6.3946]
[1723145334039,6.3925,156.44,156.37,15.9872]
[1723145334436,15.5308,156.46,156.4,6.3938]
[1723145334638,6.3923,156.44,156.39,6.3941]
[1723145334841,6.3923,156.44,156.4,6.3938]
[1723145335541,6.3923,156.44,156.39,6.3941]
[1723145335733,20.0,156.43,156.39,6.3941]
[1723145335933,45.0,156.42,156.39,6.3941]
[1723145336140,20.0,156.43,156.4,6.3938]
[1723145337049,20.0,156.43,156.39,6.3941]
[1723145337247,6.3937,156.41,156.36,6.3953]
[1723145337545,65.0,156.4,156.35,6.3958]
[1723145337842,71.3939,156.4,156.35,6.3958]
[1723145338438,6.3943,156.39,156.34,6.3961]
[1723145338746,45.0,156.38,156.34,6.3963]
[1723145338927,45.0,156.38,156.35,6.3958]
[1723145339327,45.0,156.39,156.35,6.3958]
[1723145339733,51.3943,156.39,156.35,6.3958]
[1723145339951,51.3943,156.39,156.34,6.3963]
[1723145340351,6.3955,156.36,156.31,6.3974]
[1723145340652,6.3972,156.32,156.27,15.9975]
[1723145341027,45.0,156.31,156.27,15.9975]
[1723145341230,45.0,156.32,156.27,15.9975]
[1723145341431,45.0,156.33,156.31,6.3972]
[1723145341824,6.3951,156.37,156.32,6.3971]
[1723145342033,20.0,156.36,156.33,6.3966]
[1723145342251,45.0,156.35,156.33,6.3966]
[1723145343151,45.0,156.35,156.28,15.9965]
[1723145343653,6.3971,156.32,156.28,15.9965]
[1723145343847,45.0,156.31,156.28,22.3952]
[1723145344231,45.0,156.32,156.28,22.3952]
[1723145344430,45.0,156.32,156.29,6.3983]
[1723145344948,6.3975,156.31,156.26,6.3993]
[1723145345255,45.0,156.3,156.26,6.3993]
[1723145345439,45.0,156.3,156.25,15.9994]
[1723145345755,6.3994,156.27,156.22,16.0024]
[1723145345949,45.0,156.26,156.22,16.0024]
[1723145346434,45.0,156.26,156.22,22.4033]
[1723145346636,45.0,156.26,156.22,16.0024]
[1723145346871,45.0,156.26,156.23,6.4007]
[1723145347032,51.3993,156.27,156.22,22.4035]
[1723145347233,45.0,156.27,156.19,38.1018]
[1723145347460,6.4,156.25,156.2,6.4017]
[1723145347763,45.0,156.24,156.19,22.0966]
[1723145347951,45.0,156.24,156.12,32.025]
[1723145348254,16.0039,156.22,156.12,6.4051]
[1723145348461,16.0039,156.22,156.11,6.6469]
[1723145348462,6.4024,156.19,156.11,6.6469]
[1723145348635,20.0,156.18,156.11,6.6469]
[1723145348835,45.0,156.17,156.14,6.4043]
[1723145349031,45.0,156.17,156.16,6.4036]
[1723145349231,6.402,156.2,156.15,22.4133]
[1723145349453,65.0,156.19,156.15,22.4133]
[1723145349654,65.0,156.19,156.15,16.0093]
[1723145349840,65.0,156.19,156.12,16.0132]
[1723145349841,71.4028,156.19,156.12,16.0132]
[1723145350354,71.4024,156.19,156.13,6.4045]
[1723145350559,65.0,156.19,156.13,6.4045]
[1723145350747,6.4028,156.18,156.13,6.4045]
[1723145350948,45.0,156.17,156.13,6.4045]
[1723145351259,65.0,156.19,156.12,16.0132]
[1723145351442,6.4028,156.18,156.12,22.4184]
[1723145351763,65.0,156.17,156.12,22.4184]
[1723145351934,65.0,156.17,156.13,6.4048]
[1723145352348,65.0,156.17,156.14,6.4043]
[1723145352756,65.0,156.17,156.13,6.4049]
[1723145353169,65.0,156.17,156.12,22.4184]
[1723145353332,65.0,156.17,156.13,6.4047]
[1723145353535,65.0,156.17,156.12,16.0132]
[1723145353861,65.0,156.17,156.13,6.4048]
[1723145355049,65.0,156.17,156.14,6.4044]
[1723145355244,6.4021,156.2,156.15,6.404]
[1723145355660,6.4021,156.2,156.12,16.0132]
[1723145355661,17.98367547,156.21,156.16,6.4036]
[1723145356169,11.58207547,156.21,156.11,32.0281]
[1723145356460,11.58207547,156.21,156.2,6.402]
[1723145356655,6.3999,156.26,156.2,6.402]
[1723145356862,29.18348052,156.27,156.15,38.155]
[1723145356863,15.9172,156.27,156.22,6.4011]
[1723145357056,15.9172,156.27,156.21,22.4053]
[1723145357238,15.9172,156.27,156.18,16.0068]
[1723145357841,6.4007,156.24,156.19,6.4021]
[1723145358362,6.4001,156.25,156.2,6.402]
[1723145358550,20.0,156.24,156.2,6.402]
[1723145358936,20.0,156.24,156.21,6.4016]
[1723145359139,20.0,156.25,156.21,6.4016]
[1723145359363,26.4,156.25,156.2,6.4019]
[1723145359666,20.0,156.25,156.18,16.0068]
[1723145359968,6.4009,156.23,156.18,22.4096]
[1723145360160,6.4013,156.22,156.18,16.0068]
[1723145360841,51.4016,156.21,156.15,60.5682]
[1723145361049,51.4016,156.21,156.15,22.1451]
[1723145361259,45.0,156.21,156.15,16.0096]
[1723145361560,51.4017,156.21,156.16,6.4033]
[1723145361759,6.4021,156.2,156.15,22.4135]
[1723145361967,51.4024,156.19,156.15,22.4135]
[1723145362168,6.4021,156.2,156.15,22.4135]
[1723145362355,45.0,156.19,156.15,22.4135]
[1723145363348,45.0,156.19,156.12,22.4176]
[1723145363668,20.0,156.18,156.12,16.0127]
[1723145363845,45.0,156.17,156.14,6.4044]
[1723145364447,20.0,156.18,156.15,6.404]
[1723145364657,6.4021,156.2,156.15,6.404]
[1723145364869,6.4021,156.2,156.16,6.4036]
[1723145364870,45.0,156.19,156.16,6.4036]
[1723145365079,20.0,156.18,156.16,6.4036]
[1723145365471,20.0,156.18,156.15,6.4039]
[1723145366087,45.0,156.19,156.16,6.4036]
[1723145366266,20.0,156.18,156.15,6.404]
[1723145366464,20.0,156.18,156.14,22.4148]
[1723145366662,20.0,156.18,156.15,6.4039]
[1723145367263,20.0,156.19,156.15,6.4039]
[1723145367870,20.0,156.19,156.16,6.4036]
[1723145368205,6.4013,156.22,156.17,6.4031]
[1723145368367,45.0,156.21,156.17,6.4031]
[1723145368563,6.4013,156.22,156.17,6.4031]
[1723145368867,32.97397176,156.26,156.16,16.0088]
[1723145369069,6.4012,156.22,156.17,6.4031]
[1723145369373,32.97397176,156.26,156.11,38.4374]
[1723145369374,6.4007,156.24,156.19,6.4023]
[1723145369772,6.4007,156.24,156.2,6.4019]
[1723145370090,6.4007,156.24,156.19,6.4023]
[1723145370279,6.3019,156.3,156.16,6.6478]
[1723145370487,6.3988,156.28,156.23,6.4005]
[1723145370994,6.3979,156.3,156.25,6.3996]
[1723145371489,6.3984,156.29,156.25,6.3996]
[1723145371662,6.3984,156.29,156.24,22.4008]
[1723145372061,6.3984,156.29,156.25,6.3999]
[1723145372876,6.3984,156.29,156.24,22.4008]
[1723145373083,26.00275966,156.31,156.24,16.0005]
[1723145373306,6.3988,156.28,156.24,22.4008]
[1723145373798,6.4,156.25,156.21,22.405]
[1723145373976,6.3996,156.26,156.21,22.405]
[1723145374297,6.3996,156.26,156.22,6.4012]
[1723145374463,6.3996,156.26,156.21,16.0035]
[1723145374464,6.3996,156.26,156.21,22.405]
[1723145374771,6.399,156.28,156.23,6.4007]
[1723145374972,45.0,156.27,156.23,6.4007]
[1723145375369,6.399,156.28,156.23,6.4007]
[1723145376291,26.00275966,156.31,156.19,32.0119]
[1723145376608,6.3987,156.29,156.25,15.9995]
[1723145376781,20.0,156.28,156.25,15.9995]
[1723145377371,26.398,156.3,156.26,6.3995]
[1723145377777,10.43025966,156.31,156.28,6.3987]
[1723145378288,16.82775966,156.31,156.25,15.9995]
[1723145378488,10.43025966,156.31,156.16,6.6478]
[1723145378687,6.4001,156.25,156.21,6.4015]
[1723145378883,6.3997,156.26,156.21,6.4015]
[1723145379572,6.3993,156.27,156.21,16.0037]
[1723145379774,20.0,156.26,156.21,16.0037]
[1723145380198,26.3996,156.26,156.22,6.4011]
[1723145380499,6.3992,156.27,156.22,6.4011]
[1723145380716,6.3996,156.26,156.22,6.401]
[1723145381116,6.3992,156.27,156.23,6.4007]
[1723145381418,20.0,156.26,156.23,6.4007]
[1723145381974,20.0,156.26,156.22,6.401]
[1723145382175,26.3998,156.26,156.21,22.4052]
[1723145382895,26.3998,156.26,156.21,16.0037]
[1723145383083,26.3998,156.26,156.21,22.405]
[1723145383289,26.3998,156.26,156.21,16.0037]
[1723145384108,6.3998,156.26,156.21,16.0037]
[1723145384288,6.3998,156.26,156.22,6.4012]
[1723145384490,6.4,156.25,156.21,16.0037]
[1723145384987,6.4004,156.24,156.2,6.4017]
[1723145385584,6.4,156.25,156.21,6.4015]
[1723145385975,15.9983,156.27,156.18,16.0064]
[1723145386209,6.4012,156.22,156.18,16.0064]
[1723145386417,65.0,156.26,156.17,6.4032]
[1723145386418,71.2642,156.26,156.17,6.4032]
[1723145386585,6.4023,156.2,156.16,6.4036]
[1723145386785,20.0,156.19,156.16,6.4036]
[1723145386984,20.0,156.19,156.15,22.4137]
[1723145387186,6.4029,156.18,156.13,6.4046]
[1723145387693,6.4032,156.17,156.12,22.418]
[1723145388082,6.4029,156.18,156.13,6.4047]
[1723145388709,20.0,156.19,156.15,6.4039]
[1723145389493,16.5842,156.2,156.16,16.0086]
[1723145389703,6.4011,156.23,156.18,6.4025]
[1723145390009,16.4236,156.24,156.18,6.4025]
[1723145390186,22.8243,156.24,156.18,6.4025]
[1723145390387,6.4008,156.23,156.19,6.4023]
[1723145391614,22.8241,156.24,156.19,6.4023]
[1723145391912,16.4236,156.24,156.18,16.0067]
[1723145392206,20.0,156.23,156.2,6.402]
[1723145393508,20.0,156.23,156.19,6.4023]
[1723145394402,20.0,156.23,156.2,6.4018]
[1723145394702,20.0,156.24,156.2,6.4018]
[1723145394907,26.4004,156.24,156.19,6.4023]
[1723145395413,20.0,156.24,156.18,22.4094]
[1723145395613,6.4009,156.23,156.18,22.4094]
[1723145396599,6.4009,156.23,156.19,6.4024]
[1723145397501,6.4005,156.24,156.2,6.402]
[1723145397710,20.0,156.23,156.2,6.402]
[1723145398097,15.4172,156.27,156.22,6.4012]
[1723145398300,6.3996,156.26,156.21,6.4016]
[1723145398617,20.0,156.25,156.21,6.4016]
[1723145398812,20.0,156.25,156.17,16.008]
[1723145399134,15.4172,156.27,156.17,16.008]
[1723145399135,6.4009,156.23,156.18,6.4028]
[1723145399428,20.0,156.26,156.16,6.4035]
[1723145399429,35.9994,156.26,156.16,6.4035]
[1723145399610,6.4017,156.21,156.16,6.4035]
[1723145399925,6.4017,156.21,156.17,6.4032]
[1723145400101,6.4013,156.22,156.17,6.4032]
[1723145400302,51.4002,156.25,156.2,6.4017]
[1723145400609,6.4011,156.23,156.18,16.0064]
[1723145400801,20.0,156.22,156.18,22.4091]
[1723145401243,26.4012,156.22,156.18,22.4091]
[1723145401393,20.0,156.22,156.18,22.4091]
[1723145402548,15.4172,156.27,156.2,16.0046]
[1723145402729,6.401,156.23,156.18,6.4025]
[1723145402913,6.4005,156.24,156.19,6.4021]
[1723145403114,20.0,156.23,156.18,6.4028]
[1723145403405,6.4009,156.23,156.18,6.4028]
[1723145403838,6.4009,156.23,156.19,6.4024]
[1723145404046,6.4005,156.24,156.19,6.4024]
[1723145404250,20.0,156.23,156.2,6.4019]
[1723145404421,6.4,156.25,156.2,6.4019]
[1723145404619,20.0,156.26,156.16,32.0183]
[1723145404620,20.0,156.26,156.22,6.4009]
[1723145405114,26.3997,156.26,156.22,6.4009]
[1723145405442,6.4,156.25,156.21,22.4049]
[1723145405618,6.4004,156.24,156.2,6.4019]
[1723145405814,20.0,156.24,156.18,22.4089]
[1723145406021,20.0,156.24,156.19,6.4021]
[1723145406022,6.4004,156.24,156.19,6.4021]
[1723145406248,26.4008,156.23,156.19,6.4021]
[1723145406418,26.4008,156.23,156.18,22.4091]
[1723145407244,6.4019,156.21,156.16,6.4034]
[1723145407445,6.4013,156.22,156.17,6.403]
[1723145407741,26.4009,156.23,156.17,16.0079]
[1723145407923,51.4015,156.22,156.17,22.411]
[1723145408130,6.4017,156.21,156.17,22.411]
[1723145408626,26.4011,156.23,156.17,16.0079]
[1723145408832,6.4013,156.22,156.17,16.0079]
[1723145409025,51.402,156.21,156.17,16.0079]
[1723145409226,45.0,156.21,156.11,6.2051]
[1723145409425,6.4028,156.18,156.14,16.0107]
[1723145409731,45.0,156.22,156.11,22.4189]
[1723145409732,6.4037,156.16,156.11,22.4189]
[1723145409953,20.0,156.17,156.13,16.012]
[1723145410246,26.4034,156.17,156.13,16.012]
[1723145410443,6.4036,156.16,156.12,6.4051]
[1723145410625,26.4033,156.17,156.12,6.4051]
[1723145410821,20.0,156.17,156.1,16.0146]
[1723145411031,45.0,156.16,156.1,16.0146]
[1723145411330,26.4029,156.18,156.13,6.4046]
[1723145411731,6.4034,156.17,156.12,22.4181]
[1723145411944,20.0,156.16,156.12,22.4181]
[1723145412428,20.0,156.16,156.13,6.4047]
[1723145412649,20.0,156.16,156.13,6.4046]
[1723145412850,20.0,156.16,156.12,16.0129]
[1723145413064,22.4762,156.19,156.15,6.404]
[1723145413345,16.2723,156.24,156.16,16.0085]
[1723145413551,16.2723,156.24,156.13,32.0242]
[1723145413775,15.7679,156.28,156.15,6.3788]
[1723145413940,6.4001,156.25,156.2,22.4063]
[1723145414541,15.9984,156.27,156.17,16.0079]
[1723145414743,6.4009,156.23,156.18,6.4027]
[1723145415017,15.7679,156.28,156.19,16.0056]
[1723145415226,45.0,156.27,156.19,16.0056]